bitfinex/quotes_SOLUSD_20251226
["timestamp","ask_amount","ask_price","bid_price","bid_amount"]
[1766770081070,7.17239113,122.05,122.0,0.72]
[1766770081254,0.7,122.05,122.0,21.45239113]
[1766770081458,0.7,122.05,122.01,0.72]
[1766770081755,0.7,122.05,122.0,21.45239113]
[1766770081957,7.17239113,122.04,122.0,22.17239113]
[1766770082260,0.7,122.04,122.0,22.17239113]
[1766770082456,6.47239113,122.05,122.01,0.72]
[1766770082964,0.7,122.04,122.0,15.7]
[1766770083166,6.47239113,122.03,122.0,15.7]
[1766770083861,7.17239113,122.03,122.0,14.98]
[1766770084060,6.47239113,122.03,122.0,15.7]
[1766770084263,0.7,122.05,122.0,15.7]
[1766770084264,6.47239113,122.04,122.0,15.7]
[1766770084460,7.17239113,122.04,122.0,15.7]
[1766770084656,7.17239113,122.04,122.0,22.17239113]
[1766770085251,7.17239113,122.04,122.0,15.7]
[1766770085460,0.7,122.02,122.0,14.98]
[1766770085657,7.17239113,122.03,121.99,0.72]
[1766770085857,7.17239113,122.03,121.99,7.19239113]
[1766770086056,7.17239113,122.03,121.99,0.72]
[1766770086253,11.13767296,122.03,121.99,7.19239113]
[1766770086543,0.7,122.05,122.01,0.72]
[1766770086766,0.7,122.05,122.02,0.72]
[1766770086956,0.7,122.05,121.99,8.19726652]
[1766770087155,0.7,122.05,122.01,7.19239113]
[1766770087156,7.17239113,122.05,122.01,7.19239113]
[1766770087870,6.47239113,122.04,122.01,0.72]
[1766770088079,7.17239113,122.03,121.99,6.47239113]
[1766770088379,7.17239113,122.03,121.99,7.19239113]
[1766770089283,0.7,122.03,121.99,7.19239113]
[1766770090481,0.7,122.03,121.99,0.72]
[1766770090669,7.17239113,122.03,121.99,0.72]
[1766770090870,7.17239113,122.03,121.99,7.19239113]
[1766770091873,7.17239113,122.03,121.99,0.72]
[1766770092070,7.17239113,122.02,121.99,0.72]
[1766770092270,7.17239113,122.02,121.98,7.19239113]
[1766770092578,7.17239113,122.02,121.98,0.72]
[1766770092779,6.47239113,122.01,121.95,10.43767296]
[1766770092965,7.17239113,122.0,121.96,7.19239113]
[1766770093365,15.0,122.02,121.96,7.19239113]
[1766770093366,15.7,122.02,121.97,0.72]
[1766770093563,0.7,122.01,121.97,0.72]
[1766770093762,22.17239113,122.02,121.98,0.72]
[1766770094085,6.47239113,122.01,121.98,0.72]
[1766770094283,0.7,122.02,121.98,0.72]
[1766770094481,7.17239113,122.02,121.98,0.72]
[1766770095578,6.47239113,122.01,121.98,0.72]
[1766770096662,7.18239113,122.0,121.95,15.64]
[1766770096868,7.18239113,122.0,121.96,0.66]
[1766770097463,7.18239113,122.0,121.96,7.13239113]
[1766770097676,7.18239113,122.01,121.97,0.66]
[1766770098067,3.1302009,122.01,121.97,0.66]
[1766770098282,2.4202009,122.0,121.97,0.66]
[1766770098763,0.71,122.01,121.97,0.66]
[1766770098964,18.1302009,122.02,121.98,0.66]
[1766770099365,2.4202009,122.0,121.96,0.66]
[1766770099566,3.1302009,122.0,121.96,0.66]
[1766770101366,3.1302009,122.0,121.96,3.0802009]
[1766770102485,0.71,122.0,121.96,3.0802009]
[1766770104096,3.1302009,122.0,121.96,0.66]
[1766770104401,15.0,122.02,121.96,0.66]
[1766770104402,3.1302009,121.99,121.96,0.66]
[1766770104897,0.71,121.99,121.96,0.66]
[1766770105282,2.4202009,122.0,121.96,3.0802009]
[1766770105587,3.1302009,122.0,121.96,0.66]
[1766770106301,0.71,121.98,121.94,0.66]
[1766770106495,3.1302009,121.97,121.94,0.66]
[1766770107892,2.4202009,121.97,121.94,0.66]
[1766770108090,2.4202009,121.98,121.94,3.0802009]
[1766770108408,3.1302009,121.98,121.94,3.0802009]
[1766770108784,3.1302009,121.98,121.94,0.66]
[1766770111209,10.43767296,121.99,121.97,0.66]
[1766770111786,10.43767296,121.99,121.96,0.66]
[1766770111987,11.14767296,121.99,121.96,0.66]
[1766770113003,10.43767296,121.99,121.96,0.66]
[1766770118819,2.4202009,121.98,121.96,0.66]
[1766770119018,13.56787386,121.99,121.96,0.66]
[1766770119400,10.43767296,121.99,121.96,0.66]
[1766770119598,0.71,122.03,121.98,2.4202009]
[1766770119794,0.71,122.03,121.96,8.19890434]
[1766770119795,3.1302009,122.05,122.0,0.66]
[1766770120096,0.71,122.04,122.0,3.0802009]
[1766770121019,3.1302009,122.04,122.0,3.0802009]
[1766770121394,0.71,122.04,122.0,3.0802009]
[1766770122894,3.1302009,122.04,122.0,3.0802009]
[1766770123898,0.71,122.04,122.01,2.4202009]
[1766770124716,0.71,122.04,122.0,3.0802009]
[1766770126114,0.71,122.04,122.01,2.4202009]
[1766770126814,0.71,122.04,122.01,3.1102009]
[1766770127197,11.09767296,122.05,122.01,3.1102009]
[1766770129716,11.09767296,122.05,122.02,0.69]
[1766770129717,10.43767296,122.05,122.02,0.69]
[1766770130422,10.43767296,122.05,122.01,2.4202009]
[1766770130610,0.66,122.04,122.01,3.1102009]
[1766770131325,11.09767296,122.05,122.01,3.1102009]
[1766770131505,11.09767296,122.05,122.02,0.69]
[1766770131703,2.4202009,122.1,122.05,0.69]
[1766770131704,15.0,122.1,122.05,0.69]
[1766770131901,15.0,122.1,122.04,2.4202009]
[1766770131902,0.66,122.1,122.06,0.69]
[1766770132232,0.66,122.1,122.04,8.19403257]
[1766770132233,0.66,122.1,122.07,3.1102009]
[1766770134116,15.0,122.12,122.08,8.88134993]
[1766770134322,19.2830358,122.15,122.08,8.88134993]
[1766770134323,0.66,122.14,122.09,0.69]
[1766770134630,2.4202009,122.14,122.09,0.69]
[1766770134833,0.66,122.13,122.09,3.1102009]
[1766770135131,8.18384733,122.2,122.13,0.69]
[1766770135132,0.66,122.2,122.13,0.69]
[1766770135333,11.09767296,122.18,122.14,3.1102009]
[1766770135536,0.66,122.18,122.14,3.1102009]
[1766770135727,0.66,122.18,122.15,2.4202009]
[1766770136033,0.66,122.18,122.15,3.76983293]
[1766770136232,0.66,122.19,122.14,0.69]
[1766770136425,4.42983293,122.19,122.14,4.45983293]
[1766770136743,0.66,122.19,122.15,4.45983293]
[1766770137129,0.66,122.19,122.15,0.69]
[1766770137617,0.66,122.19,122.15,4.45983293]
[1766770138015,3.76983293,122.19,122.12,0.69]
[1766770138220,0.66,122.17,122.12,0.69]
[1766770138540,0.66,122.17,122.13,0.69]
[1766770138840,0.66,122.17,122.14,3.76983293]
[1766770139246,0.66,122.17,122.13,0.69]
[1766770139416,0.66,122.17,122.14,3.76983293]
[1766770139930,0.66,122.17,122.13,0.69]
[1766770140261,0.66,122.17,122.14,3.76983293]
[1766770140547,0.66,122.17,122.13,4.45983293]
[1766770140751,0.66,122.17,122.12,3.76983293]
[1766770141047,0.66,122.15,122.11,4.45983293]
[1766770141740,0.66,122.13,122.07,8.19181012]
[1766770141912,3.76983293,122.13,122.08,4.45983293]
[1766770142117,25.43767296,122.15,122.09,3.76983293]
[1766770142317,0.66,122.14,122.1,3.76983293]
[1766770142540,0.66,122.14,122.09,4.45983293]
[1766770142743,0.66,122.13,122.09,4.45983293]
[1766770143122,0.66,122.13,122.1,3.76983293]
[1766770143322,11.09767296,122.15,122.11,3.76983293]
[1766770143522,0.66,122.14,122.11,3.76983293]
[1766770143930,0.66,122.14,122.1,0.69]
[1766770144135,0.66,122.14,122.1,4.45983293]
[1766770145539,0.66,122.14,122.1,0.69]
[1766770145742,0.66,122.14,122.1,4.45983293]
[1766770146643,0.66,122.14,122.1,0.69]
[1766770146842,4.42983293,122.14,122.1,4.45983293]
[1766770148531,0.66,122.14,122.1,0.69]
[1766770148742,15.64,122.17,122.1,8.18977945]
[1766770148950,0.66,122.16,122.12,3.76983293]
[1766770149266,4.42983293,122.15,122.11,0.69]
[1766770149576,0.66,122.15,122.11,4.45983293]
[1766770149729,0.66,122.15,122.11,0.69]
[1766770150149,0.66,122.15,122.12,3.76983293]
[1766770150360,0.66,122.15,122.11,0.69]
[1766770150843,0.66,122.15,122.12,3.76983293]
[1766770151741,0.66,122.16,122.13,3.76983293]
[1766770152955,0.66,122.15,122.1,11.12767296]
[1766770153137,0.66,122.15,122.11,3.76983293]
[1766770153545,0.66,122.15,122.12,3.76983293]
[1766770153970,0.66,122.15,122.11,3.76983293]
[1766770154152,0.68,122.14,122.1,4.45983293]
[1766770154351,0.68,122.14,122.1,0.69]
[1766770154548,0.68,122.14,122.11,3.76983293]
[1766770157049,0.68,122.13,122.09,18.72983293]
[1766770157249,0.68,122.13,122.1,3.76983293]
[1766770161153,0.68,122.13,122.11,3.76983293]
[1766770161673,0.68,122.13,122.1,3.76983293]
[1766770162054,0.68,122.13,122.09,3.76983293]
[1766770163075,0.68,122.13,122.08,0.68]
[1766770163257,0.68,122.13,122.09,3.76983293]
[1766770164054,0.68,122.13,122.08,0.68]
[1766770164254,0.68,122.13,122.09,3.76983293]
[1766770164476,0.68,122.13,122.08,0.68]
[1766770164654,0.68,122.13,122.09,3.76983293]
[1766770165273,0.68,122.13,122.08,0.68]
[1766770165687,0.68,122.13,122.09,3.76983293]
[1766770165985,0.68,122.12,122.08,3.76983293]
[1766770166387,10.43767296,122.1,122.04,0.68]
[1766770166581,0.68,122.09,122.05,4.44983293]
[1766770167396,0.68,122.09,122.05,0.68]
[1766770167570,0.68,122.09,122.06,3.76983293]
[1766770168193,0.68,122.09,122.06,0.68]
[1766770168494,0.68,122.09,122.06,4.44983293]
[1766770169280,34.40983293,122.11,122.07,0.68]
[1766770169677,0.68,122.1,122.05,0.68]
[1766770169878,0.68,122.1,122.06,3.76983293]
[1766770170578,0.68,122.1,122.05,0.68]
[1766770170768,0.68,122.1,122.03,8.19444973]
[1766770170769,0.68,122.1,122.06,4.44983293]
[1766770171068,0.68,122.1,122.06,0.68]
[1766770171264,0.68,122.1,122.07,0.68]
[1766770172091,0.68,122.1,122.07,3.76983293]
[1766770173785,0.68,122.1,122.06,0.68]
[1766770173982,0.68,122.1,122.07,3.76983293]
[1766770175299,0.68,122.1,122.07,4.44983293]
[1766770175500,0.68,122.1,122.07,3.76983293]
[1766770176398,0.68,122.1,122.06,0.68]
[1766770176604,0.68,122.1,122.07,3.76983293]
[1766770179178,29.96,122.11,122.08,0.68]
[1766770179393,30.64,122.11,122.08,0.68]
[1766770179792,30.64,122.11,122.07,4.44983293]
[1766770181609,0.68,122.1,122.07,4.44983293]
[1766770182317,0.68,122.1,122.07,0.68]
[1766770182615,14.96,122.11,122.05,8.19336031]
[1766770182810,15.64,122.11,122.07,4.44983293]
[1766770183104,15.64,122.11,122.07,0.68]
[1766770185102,29.83750589,122.12,122.08,0.68]
[1766770186085,4.41983293,122.11,122.04,18.63140746]
[1766770186286,4.41983293,122.11,122.07,0.68]
[1766770186922,0.65,122.11,122.07,3.76983293]
[1766770187214,0.65,122.11,122.08,0.68]
[1766770188789,25.41767296,122.12,122.08,0.68]
[1766770189119,26.06767296,122.12,122.09,0.68]
[1766770190813,29.83750589,122.12,122.09,0.68]
[1766770191817,26.06767296,122.12,122.09,0.68]
[1766770192114,29.83750589,122.12,122.09,0.68]
[1766770192299,26.06767296,122.12,122.09,0.68]
[1766770192499,29.83750589,122.12,122.09,0.68]
[1766770194012,26.06767296,122.12,122.09,0.68]
[1766770197617,11.08767296,122.12,122.09,0.68]
[1766770198108,3.0659888,122.11,122.06,0.68]
[1766770198308,0.65,122.11,122.06,2.4159888]
[1766770198516,0.65,122.11,122.07,0.68]
[1766770199918,0.65,122.11,122.08,0.68]
[1766770200119,12.85366176,122.12,122.08,0.68]
[1766770200301,13.50366176,122.12,122.08,0.68]
[1766770201221,11.08767296,122.12,122.08,0.68]
[1766770201822,2.4159888,122.11,122.06,0.68]
[1766770202128,0.65,122.1,122.06,0.68]
[1766770202825,0.65,122.1,122.07,0.68]
[1766770203414,10.43767296,122.12,122.09,0.68]
[1766770203614,166.5,122.22,122.11,0.68]
[1766770203615,0.65,122.14,122.11,0.68]
[1766770204435,26.06767296,122.15,122.11,3.0959888]
[1766770204741,26.06767296,122.15,122.12,0.68]
[1766770206133,26.06767296,122.15,122.11,0.68]
[1766770206732,26.06767296,122.15,122.11,3.0959888]
[1766770208034,26.06767296,122.15,122.11,0.68]
[1766770208618,0.65,122.14,122.11,0.68]
[1766770209336,0.65,122.13,122.09,3.0959888]
[1766770210322,0.65,122.12,122.09,0.68]
[1766770210526,3.0659888,122.12,122.07,2.4159888]
[1766770210725,15.63,122.12,122.08,3.0959888]
[1766770212326,15.0,122.13,122.08,0.68]
[1766770212530,0.65,122.14,122.1,3.0959888]
[1766770212743,0.65,122.14,122.11,0.68]
[1766770213238,14.98,122.15,122.12,3.0959888]
[1766770213642,15.63,122.15,122.12,0.68]
[1766770213940,15.63,122.15,122.12,3.0959888]
[1766770214544,15.63,122.15,122.12,0.68]
[1766770214722,15.63,122.15,122.12,3.0959888]
[1766770215720,30.63,122.15,122.12,3.0959888]
[1766770216139,0.65,122.15,122.12,3.0959888]
[1766770217039,0.65,122.15,122.12,0.68]
[1766770217214,0.65,122.15,122.12,3.0959888]
[1766770217414,15.0,122.17,122.14,2.4159888]
[1766770217614,0.7,122.24,122.16,4.8319776]
[1766770217827,4.97690565,122.24,122.2,2.4159888]
[1766770218245,11.13767296,122.24,122.2,2.4159888]
[1766770218424,0.7,122.24,122.21,2.4159888]
[1766770218620,0.8,122.25,122.22,2.4159888]
[1766770218816,0.1,122.26,122.16,42.32289025]
[1766770218817,0.1,122.26,122.24,2.4159888]
[1766770219020,0.1,122.26,122.22,2.4159888]
[1766770219220,0.1,122.26,122.25,2.4159888]
[1766770219437,0.1,122.26,122.24,2.4159888]
[1766770219639,0.8,122.26,122.23,2.4159888]
[1766770220442,0.8,122.26,122.22,0.68]
[1766770220632,0.8,122.26,122.23,2.4159888]
[1766770220834,0.1,122.26,122.24,2.4159888]
[1766770221042,0.1,122.26,122.25,2.4159888]
[1766770221449,0.1,122.26,122.24,3.0959888]
[1766770222026,0.8,122.26,122.21,2.4159888]
[1766770222226,0.8,122.26,122.21,3.0959888]
[1766770222926,0.8,122.26,122.22,2.4159888]
[1766770223147,0.8,122.26,122.22,0.68]
[1766770223351,0.8,122.26,122.22,3.0959888]
[1766770223549,0.7,122.23,122.2,2.4159888]
[1766770223927,0.7,122.23,122.19,0.68]
[1766770224128,0.7,122.21,122.17,2.4159888]
[1766770224325,11.13767296,122.21,122.18,2.4159888]
[1766770224642,11.13767296,122.21,122.17,0.68]
[1766770224834,11.13767296,122.21,122.18,2.4159888]
[1766770225033,11.13767296,122.21,122.19,2.4159888]
[1766770225356,0.7,122.21,122.19,2.4159888]
[1766770225762,0.7,122.21,122.18,2.4159888]
[1766770226160,11.13767296,122.22,122.18,3.0959888]
[1766770226563,11.13767296,122.22,122.18,0.68]
[1766770226757,11.13767296,122.22,122.18,3.0959888]
[1766770227068,0.7,122.21,122.17,0.68]
[1766770227249,0.7,122.21,122.18,2.4159888]
[1766770227449,0.7,122.21,122.17,3.0959888]
[1766770227850,0.7,122.21,122.18,2.4159888]
[1766770228050,0.7,122.21,122.17,0.68]
[1766770228483,10.43767296,122.21,122.13,34.73148504]
[1766770228652,0.7,122.25,122.2,2.4159888]
[1766770228961,0.7,122.22,122.18,3.0959888]
[1766770229275,0.7,122.22,122.15,10.43767296]
[1766770229276,10.43767296,122.23,122.21,2.4159888]
[1766770229476,0.7,122.24,122.21,3.0959888]
[1766770229652,0.7,122.24,122.22,2.4159888]
[1766770229849,0.1,122.26,122.23,2.4159888]
[1766770229850,0.8,122.26,122.23,2.4159888]
[1766770230077,10.43767296,122.25,122.23,2.4159888]
[1766770230261,10.43767296,122.25,122.22,3.0959888]
[1766770230668,0.1,122.26,122.24,2.4159888]
[1766770230853,0.1,122.26,122.23,0.68]
[1766770231055,0.8,122.26,122.23,0.68]
[1766770231373,0.8,122.26,122.23,3.0959888]
[1766770233050,0.1,122.28,122.25,3.0959888]
[1766770233274,0.1,122.28,122.26,2.4159888]
[1766770233499,0.1,122.28,122.25,3.0959888]
[1766770233775,0.8,122.28,122.25,3.0959888]
[1766770234180,0.8,122.28,122.25,0.68]
[1766770234379,0.8,122.28,122.25,3.0959888]
[1766770234580,10.53767296,122.28,122.27,2.4159888]
[1766770234755,10.53767296,122.28,122.26,3.0959888]
[1766770235151,10.53767296,122.28,122.26,0.68]
[1766770235382,10.53767296,122.28,122.26,3.0959888]
[1766770235561,10.53767296,122.28,122.23,0.68]
[1766770235759,11.23767296,122.28,122.25,2.4159888]
[1766770236786,10.53767296,122.28,122.25,3.0959888]
[1766770236987,38.51324327,122.35,122.27,4.8319776]
[1766770237159,0.7,122.34,122.31,2.4159888]
[1766770237358,0.7,122.33,122.29,0.68]
[1766770237582,0.7,122.34,122.3,3.0959888]
[1766770237785,0.7,122.34,122.3,0.68]
[1766770238083,0.7,122.34,122.32,6.44757974]
[1766770238281,25.39767296,122.35,122.32,6.44757974]
[1766770238282,14.96,122.35,122.32,6.44757974]
[1766770238492,14.96,122.35,122.33,6.44757974]
[1766770238683,6.44757974,122.39,122.34,6.44757974]
[1766770238855,15.66,122.38,122.34,7.12757974]
[1766770239062,10.43767296,122.37,122.34,7.12757974]
[1766770239264,15.66,122.38,122.34,7.12757974]
[1766770239595,0.7,122.36,122.3,0.68]
[1766770239902,0.7,122.36,122.32,0.68]
[1766770240183,0.7,122.36,122.32,6.44757974]
[1766770240391,0.7,122.36,122.29,0.68]
[1766770240590,0.7,122.36,122.32,0.68]
[1766770240792,0.7,122.36,122.32,7.12757974]
[1766770241094,0.7,122.34,122.3,7.12757974]
[1766770241501,7.14757974,122.32,122.27,6.44757974]
[1766770241676,0.7,122.3,122.26,7.12757974]
[1766770242489,0.7,122.3,122.26,0.68]
[1766770242689,7.14757974,122.3,122.26,0.68]
[1766770242995,0.7,122.3,122.26,0.68]
[1766770243179,0.7,122.3,122.26,7.12757974]
[1766770243587,7.14757974,122.3,122.26,0.68]
[1766770243883,25.39767296,122.32,122.24,17.5952527]
[1766770243884,0.71,122.28,122.24,17.5952527]
[1766770244088,55.39767296,122.32,122.26,6.44757974]
[1766770244089,0.68,122.31,122.26,6.44757974]
[1766770244269,0.68,122.31,122.24,10.43767296]
[1766770244270,0.68,122.3,122.25,0.71]
[1766770244475,0.68,122.3,122.25,7.15757974]
[1766770244676,6.44757974,122.3,122.25,7.15757974]
[1766770245001,0.68,122.29,122.25,7.15757974]
[1766770245795,0.68,122.28,122.24,7.15757974]
[1766770245992,6.44757974,122.28,122.2,8.18317963]
[1766770246190,0.68,122.26,122.22,6.44757974]
[1766770246385,0.68,122.26,122.22,7.15757974]
[1766770246606,7.12757974,122.26,122.22,0.71]
[1766770246789,7.12757974,122.26,122.21,6.44757974]
[1766770246790,0.68,122.25,122.21,6.44757974]
[1766770246996,0.68,122.25,122.21,7.15757974]
[1766770247381,0.68,122.25,122.21,0.71]
[1766770247705,7.12757974,122.25,122.21,0.71]
[1766770248415,0.68,122.25,122.21,0.71]
[1766770248710,0.68,122.25,122.21,7.15757974]
[1766770249608,0.68,122.24,122.2,6.44757974]
[1766770249813,0.68,122.23,122.19,7.15757974]
[1766770250191,6.44757974,122.23,122.19,0.71]
[1766770250390,7.12757974,122.23,122.19,0.71]
[1766770250804,0.68,122.23,122.19,0.71]
[1766770250987,7.12757974,122.23,122.19,0.71]
[1766770251187,6.44757974,122.2,122.16,18.62359301]
[1766770251405,6.44757974,122.19,122.17,0.71]
[1766770251619,6.44757974,122.18,122.14,8.18689198]
[1766770251885,6.44757974,122.18,122.15,0.71]
[1766770252085,5.72757974,122.18,122.15,8.18659906]
[1766770252291,6.44757974,122.18,122.16,0.71]
[1766770253484,0.68,122.2,122.16,0.71]
[1766770253688,0.68,122.27,122.17,10.43767296]
[1766770253884,0.68,122.22,122.17,10.43767296]
[1766770254304,6.44757974,122.2,122.17,10.43767296]
[1766770255495,0.68,122.22,122.17,18.62295239]
[1766770255689,6.44757974,122.2,122.17,18.62295239]
[1766770255898,6.44757974,122.21,122.17,18.62295239]
[1766770257123,0.68,122.22,122.17,10.43767296]
[1766770257124,6.44757974,122.2,122.17,10.43767296]
[1766770257600,6.44757974,122.2,122.17,18.62298172]
[1766770257804,0.68,122.22,122.17,10.43767296]
[1766770258198,10.49992079,122.19,122.17,10.43767296]
[1766770259419,0.68,122.17,122.12,8.1882292]
[1766770259635,10.49992079,122.16,122.12,18.68814999]
[1766770259927,10.49992079,122.16,122.15,10.43767296]
[1766770260312,0.68,122.17,122.13,29.1255273]
[1766770260493,14.96,122.21,122.14,8.18730083]
[1766770260700,10.49992079,122.19,122.15,10.49992079]
[1766770260900,0.68,122.2,122.15,10.49992079]
[1766770261104,0.68,122.2,122.15,8.18663307]
[1766770261303,0.68,122.2,122.14,10.43767296]
[1766770261616,10.49992079,122.17,122.13,20.93759375]
[1766770262120,11.17992079,122.18,122.13,29.12552908]
[1766770262423,10.49992079,122.16,122.12,33.6484127]
[1766770262597,0.68,122.18,122.13,18.68787131]
[1766770262598,11.17992079,122.18,122.13,18.68787131]
[1766770263120,10.49992079,122.17,122.13,10.49992079]
[1766770263631,11.17992079,122.18,122.13,18.68781867]
[1766770264004,11.17992079,122.18,122.14,10.49992079]
[1766770265404,30.0,122.25,122.17,10.49992079]
[1766770265617,0.68,122.23,122.18,10.49992079]
[1766770266125,14.96,122.26,122.15,14.96]
[1766770266126,10.49992079,122.24,122.19,10.49992079]
[1766770266424,11.17992079,122.23,122.16,0.81859855]
[1766770266636,11.17992079,122.23,122.19,10.49992079]
[1766770267125,11.17992079,122.23,122.17,8.18488362]
[1766770267317,0.68,122.23,122.19,10.49992079]
[1766770267629,11.17992079,122.23,122.19,10.49992079]
[1766770267921,11.17992079,122.23,122.17,8.18488362]
[1766770268115,11.17992079,122.23,122.19,10.49992079]
[1766770268630,11.17992079,122.23,122.2,10.49992079]
[1766770268631,0.68,122.23,122.2,10.49992079]
[1766770268928,11.17992079,122.25,122.21,10.49992079]
[1766770269521,0.68,122.25,122.21,10.49992079]
[1766770269728,11.17992079,122.25,122.21,10.49992079]
[1766770269903,0.68,122.25,122.21,10.49992079]
[1766770270920,10.49992079,122.24,122.19,14.96]
[1766770271134,0.68,122.23,122.2,10.49992079]
[1766770271641,11.17992079,122.25,122.2,10.49992079]
[1766770271835,10.49992079,122.24,122.2,10.49992079]
[1766770272044,11.17992079,122.25,122.2,10.49992079]
[1766770272411,11.17992079,122.24,122.19,23.14391697]
[1766770272641,0.68,122.24,122.2,10.49992079]
[1766770272841,10.43767296,122.27,122.22,10.49992079]
[1766770273141,0.68,122.25,122.22,10.49992079]
[1766770273551,21.61759375,122.27,122.23,10.49992079]
[1766770273731,0.68,122.27,122.23,10.49992079]
[1766770274224,25.45992079,122.28,122.25,10.49992079]
[1766770274225,10.43767296,122.28,122.25,10.49992079]
[1766770274625,0.67,122.29,122.25,10.49992079]
[1766770275038,0.67,122.29,122.26,10.49992079]
[1766770275243,0.67,122.29,122.25,10.49992079]
[1766770276550,11.16992079,122.28,122.23,33.64098914]
[1766770276840,11.16992079,122.28,122.23,25.45992079]
[1766770276841,0.67,122.27,122.23,25.45992079]
[1766770277017,0.67,122.29,122.24,10.49992079]
[1766770277422,11.16992079,122.29,122.24,10.49992079]
[1766770277642,11.16992079,122.29,122.24,18.68043217]
[1766770277836,0.67,122.29,122.25,10.49992079]
[1766770278442,11.16992079,122.29,122.24,10.49992079]
[1766770279536,11.16992079,122.29,122.24,18.68048103]
[1766770279734,11.16992079,122.29,122.24,10.49992079]
[1766770279934,0.67,122.3,122.23,14.96]
[1766770280141,4.4345411,122.27,122.23,14.96]
[1766770280648,0.67,122.27,122.23,23.14128674]
[1766770280844,0.67,122.27,122.23,14.96]
[1766770281444,0.67,122.27,122.23,23.14122842]
[1766770281629,0.67,122.27,122.23,14.96]
[1766770283031,4.4345411,122.25,122.2,14.20221406]
[1766770283249,4.4345411,122.25,122.2,10.43767296]
[1766770283556,4.4345411,122.25,122.2,8.18323748]
[1766770284746,14.20221406,122.28,122.19,14.96]
[1766770284747,4.4345411,122.23,122.19,14.96]
[1766770285326,0.67,122.23,122.19,14.96]
[1766770285626,4.4345411,122.23,122.19,14.96]
[1766770286046,4.4345411,122.23,122.19,23.14367787]
[1766770286270,0.67,122.22,122.19,14.96]
[1766770286434,4.4345411,122.21,122.16,37.34808685]
[1766770287043,4.4345411,122.21,122.16,33.58354575]
[1766770287350,4.4345411,122.21,122.17,8.18529383]
[1766770287939,11.16888208,122.21,122.17,8.18529383]
[1766770289234,11.16888208,122.21,122.16,44.08228367]
[1766770290352,0.67,122.21,122.16,44.08228367]
[1766770290655,11.16888208,122.21,122.16,44.08228367]
[1766770290952,10.49888208,122.21,122.16,35.89655504]
[1766770291151,11.16888208,122.2,122.16,25.39767296]
[1766770292061,11.16888208,122.2,122.16,14.96]
[1766770294259,0.67,122.21,122.16,33.6447968]
[1766770294441,11.16888208,122.21,122.16,23.14591472]
[1766770294761,10.49888208,122.2,122.16,23.14591472]
[1766770295058,11.16888208,122.21,122.16,23.14591472]
[1766770295263,10.49888208,122.21,122.16,23.14591472]
[1766770295569,11.16888208,122.2,122.16,23.14591472]
[1766770297443,11.16888208,122.23,122.18,10.49888208]
[1766770297765,11.16888208,122.23,122.16,44.42947725]
[1766770297766,0.67,122.23,122.19,10.49888208]
[1766770298457,25.39767296,122.26,122.14,10.43767296]
[1766770298458,0.67,122.25,122.14,10.43767296]
[1766770298670,11.16888208,122.19,122.15,23.14653537]
[1766770298979,11.16888208,122.18,122.13,10.43767296]
[1766770299265,10.43767296,122.21,122.12,33.64738577]
[1766770299266,11.16888208,122.17,122.12,33.64738577]
[1766770299762,0.67,122.17,122.12,23.14850369]
[1766770299943,11.16888208,122.17,122.12,33.64738577]
[1766770300255,35.93655504,122.22,122.14,10.49888208]
[1766770300256,0.67,122.18,122.14,10.49888208]
[1766770300649,0.67,122.18,122.15,10.49888208]
[1766770301840,0.67,122.18,122.14,8.18732601]
[1766770302042,10.49888208,122.19,122.14,19.34620809]
[1766770302749,14.96,122.21,122.15,10.49888208]